[Event "*** Biggest EVER Titled Tuesday"]
[Site "Chess.com"]
[Date "2018.04.17"]
[Round "7"]
[White "Bryakin_Mikhail"]
[Black "cheese111"]
[Result "1-0"]
[WhiteElo "2609"]
[BlackElo "2417"]
[TimeControl "180+2"]
[EndTime "14:40:52 PDT"]
[Termination "Bryakin_Mikhail won by resignation"]

1. e4 {[%clk 0:03:01.4]} 1... e5 {[%clk 0:02:59.7]} 2. Nf3 {[%clk 0:03:01.6]}
2... Nc6 {[%clk 0:03:01.1]} 3. Bc4 {[%clk 0:03:01.6]} 3... Bc5 {[%clk 0:03:01]}
4. O-O {[%clk 0:03:01.3]} 4... Nf6 {[%clk 0:03:01.5]} 5. d3 {[%clk 0:03:02.1]}
5... O-O {[%clk 0:03:02.9]} 6. Be3 {[%clk 0:03:02.8]} 6... Bxe3 {[%clk 0:03:01]}
7. fxe3 {[%clk 0:03:03.4]} 7... d6 {[%clk 0:03:00.9]} 8. a3 {[%clk 0:03:03.3]}
8... Be6 {[%clk 0:03:01.5]} 9. Nbd2 {[%clk 0:03:04.7]} 9... Bxc4 {[%clk
0:02:59.9]} 10. Nxc4 {[%clk 0:03:06.6]} 10... a5 {[%clk 0:02:44.5]} 11. a4
{[%clk 0:03:04.1]} 11... Ne7 {[%clk 0:02:44.9]} 12. Qe1 {[%clk 0:03:01.5]} 12...
b6 {[%clk 0:02:45.2]} 13. Qg3 {[%clk 0:03:00.7]} 13... Ng6 {[%clk 0:02:46.3]}
14. Rf2 {[%clk 0:02:42.8]} 14... Qd7 {[%clk 0:02:35.9]} 15. b3 {[%clk
0:02:29.9]} 15... Qg4 {[%clk 0:02:35.3]} 16. Qxg4 {[%clk 0:02:25.4]} 16... Nxg4
{[%clk 0:02:37.2]} 17. Re2 {[%clk 0:02:27]} 17... Nf6 {[%clk 0:02:33]} 18. Ree1
{[%clk 0:02:12.8]} 18... Rfe8 {[%clk 0:02:33.9]} 19. Nfd2 {[%clk 0:02:06.8]}
19... h6 {[%clk 0:02:29.9]} 20. Na3 {[%clk 0:02:02.9]} 20... Nf8 {[%clk
0:02:27.3]} 21. Nb5 {[%clk 0:02:02.4]} 21... Ne6 {[%clk 0:02:28.1]} 22. Nc4
{[%clk 0:02:03.3]} 22... Re7 {[%clk 0:02:25.6]} 23. Kf1 {[%clk 0:02:03.2]} 23...
g6 {[%clk 0:02:12.9]} 24. Ke2 {[%clk 0:02:04.2]} 24... Kg7 {[%clk 0:02:14]} 25.
Rf1 {[%clk 0:02:04.6]} 25... h5 {[%clk 0:02:14.2]} 26. Nc3 {[%clk 0:01:59.5]}
26... Nd7 {[%clk 0:01:58]} 27. Nd5 {[%clk 0:01:52.4]} 27... Ree8 {[%clk
0:01:58.7]} 28. Rf2 {[%clk 0:01:52.6]} 28... Rf8 {[%clk 0:01:54.4]} 29. Raf1
{[%clk 0:01:53.8]} 29... Rae8 {[%clk 0:01:51.1]} 30. Kd2 {[%clk 0:01:44.5]}
30... Rc8 {[%clk 0:01:38.7]} 31. Na3 {[%clk 0:01:26.5]} 31... Rcd8 {[%clk
0:01:02.5]} 32. Nc4 {[%clk 0:01:06.2]} 32... Ndc5 {[%clk 0:00:54]} 33. Nf6
{[%clk 0:00:56.5]} 33... Nd7 {[%clk 0:00:52.8]} 34. Nd5 {[%clk 0:00:48.4]} 34...
Ndc5 {[%clk 0:00:53.9]} 35. Kc1 {[%clk 0:00:45.6]} 35... Nd7 {[%clk 0:00:55.1]}
36. Kb2 {[%clk 0:00:46.9]} 36... Ndc5 {[%clk 0:00:56.6]} 37. Nd2 {[%clk
0:00:39.2]} 37... Nd7 {[%clk 0:00:57.5]} 38. Nf3 {[%clk 0:00:40.1]} 38... Ndc5
{[%clk 0:00:57]} 39. h4 {[%clk 0:00:40.5]} 39... Rd7 {[%clk 0:00:55.4]} 40. Nh2
{[%clk 0:00:33.4]} 40... Rh8 {[%clk 0:00:54.6]} 41. Rf6 {[%clk 0:00:32.1]} 41...
Rh7 {[%clk 0:00:48.8]} 42. R1f2 {[%clk 0:00:23.5]} 42... Rh8 {[%clk 0:00:49.6]}
43. Nf1 {[%clk 0:00:24.6]} 43... Rf8 {[%clk 0:00:45.6]} 44. Ng3 {[%clk
0:00:22.8]} 44... Rb8 {[%clk 0:00:35.7]} 45. Kc3 {[%clk 0:00:22.4]} 45... c6
{[%clk 0:00:31.8]} 46. d4 {[%clk 0:00:18.5]} 46... Na6 {[%clk 0:00:21.5]} 47.
Kd2 {[%clk 0:00:09.1]} 47... cxd5 {[%clk 0:00:22.3]} 48. exd5 {[%clk 0:00:11]}
48... Nec7 {[%clk 0:00:23]} 49. c4 {[%clk 0:00:11.5]} 49... exd4 {[%clk
0:00:22.9]} 50. exd4 {[%clk 0:00:12.8]} 50... Re8 {[%clk 0:00:23.9]} 51. R2f4
{[%clk 0:00:09.8]} 51... Nb8 {[%clk 0:00:24.4]} 52. Rf1 {[%clk 0:00:10.7]} 52...
Ree7 {[%clk 0:00:21.4]} 53. Kd3 {[%clk 0:00:11.8]} 53... Ne8 {[%clk 0:00:22.6]}
54. R6f3 {[%clk 0:00:12.3]} 54... f5 {[%clk 0:00:24]} 55. Ne2 {[%clk 0:00:13]}
55... Nc7 {[%clk 0:00:21.5]} 56. Nf4 {[%clk 0:00:14.3]} 56... Kf6 {[%clk
0:00:20.1]} 57. Rg3 {[%clk 0:00:15]} 57... Rg7 {[%clk 0:00:21.3]} 58. Rg5 {[%clk
0:00:14.1]} 58... Rde7 {[%clk 0:00:22.3]} 59. Nxh5+ {[%clk 0:00:15.2]} 59... Kf7
{[%clk 0:00:20]} 60. Nxg7 {[%clk 0:00:16.4]} 60... Kxg7 {[%clk 0:00:21.9]} 61.
h5 {[%clk 0:00:17.9]} 61... Kh6 {[%clk 0:00:18.8]} 62. Rxg6+ {[%clk 0:00:14.7]}
62... Kxh5 {[%clk 0:00:20.4]} 63. Rxd6 {[%clk 0:00:16.3]} 63... Nd7 {[%clk
0:00:20.5]} 64. Rxf5+ {[%clk 0:00:17.2]} 64... Kg4 {[%clk 0:00:21.8]} 65. Rf3
{[%clk 0:00:17.6]} 65... Ne8 {[%clk 0:00:22.6]} 66. Rg6+ {[%clk 0:00:18.8]}
66... Kh5 {[%clk 0:00:23.4]} 67. Rg8 {[%clk 0:00:19.4]} 67... Ng7 {[%clk
0:00:22.6]} 68. Rg3 {[%clk 0:00:20.6]} 68... Kh6 {[%clk 0:00:20.2]} 69. Rh3+
{[%clk 0:00:21.7]} 69... Kg6 {[%clk 0:00:20.5]} 70. Rg3+ {[%clk 0:00:21.4]}
70... Kh7 {[%clk 0:00:21.2]} 71. Ra8 {[%clk 0:00:21.9]} 71... Nf6 {[%clk
0:00:22.1]} 72. Rh3+ {[%clk 0:00:22.6]} 72... Kg6 {[%clk 0:00:23]} 73. Rg3+
{[%clk 0:00:23.9]} 73... Kf7 {[%clk 0:00:23.7]} 74. Rb8 {[%clk 0:00:21.3]} 74...
Nf5 {[%clk 0:00:24.4]} 75. Rf3 {[%clk 0:00:22]} 75... Nh4 {[%clk 0:00:25.7]} 76.
Rf2 {[%clk 0:00:19.5]} 76... Kg7 {[%clk 0:00:24.3]} 77. Rxb6 {[%clk 0:00:16.9]}
77... Ng4 {[%clk 0:00:25]} 78. Re2 {[%clk 0:00:18]} 78... Rf7 {[%clk 0:00:24.8]}
79. c5 {[%clk 0:00:19]} 79... Ng6 {[%clk 0:00:25.8]} 80. Kc4 {[%clk 0:00:16.4]}
80... Nf4 {[%clk 0:00:26.5]} 81. Re8 {[%clk 0:00:17.4]} 81... Nxd5 {[%clk
0:00:26.4]} 82. Kxd5 {[%clk 0:00:17.5]} 82... Nf6+ {[%clk 0:00:27.5]} 83. Rxf6
{[%clk 0:00:19]} 83... Kxf6 {[%clk 0:00:27.6]} 84. c6 {[%clk 0:00:20.5]} 1-0

[Event "*** Biggest EVER Titled Tuesday"]
[Site "Chess.com"]
[Date "2018.04.17"]
[Round "7"]
[White "Bigfish1995"]
[Black "GMKrikor"]
[Result "0-1"]
[WhiteElo "2746"]
[BlackElo "2630"]
[TimeControl "180+2"]
[EndTime "14:41:03 PDT"]
[Termination "GMKrikor won by resignation"]

1. d4 {[%clk 0:03:00.5]} 1... Nf6 {[%clk 0:03:01]} 2. c4 {[%clk 0:03:01.3]} 2...
e6 {[%clk 0:03:01.7]} 3. Nf3 {[%clk 0:03:01.4]} 3... d5 {[%clk 0:03:02.8]} 4. g3
{[%clk 0:03:02]} 4... Bb4+ {[%clk 0:02:58.3]} 5. Bd2 {[%clk 0:03:01.7]} 5... Be7
{[%clk 0:02:58.7]} 6. Bg2 {[%clk 0:03:03.3]} 6... O-O {[%clk 0:02:58.9]} 7. O-O
{[%clk 0:03:04.8]} 7... Nbd7 {[%clk 0:02:56.2]} 8. Qc2 {[%clk 0:03:05.6]} 8...
Ne4 {[%clk 0:02:57.2]} 9. Be3 {[%clk 0:03:03.3]} 9... c6 {[%clk 0:02:54.1]} 10.
Nbd2 {[%clk 0:02:56.7]} 10... f5 {[%clk 0:02:28.8]} 11. Ne1 {[%clk 0:02:44.2]}
11... Ndf6 {[%clk 0:02:09.9]} 12. Nxe4 {[%clk 0:02:44.6]} 12... fxe4 {[%clk
0:02:06.2]} 13. f3 {[%clk 0:02:42.1]} 13... exf3 {[%clk 0:01:51.5]} 14. Nxf3
{[%clk 0:02:36.3]} 14... Bd6 {[%clk 0:01:11.1]} 15. Bg5 {[%clk 0:02:22.9]} 15...
Qe8 {[%clk 0:01:08.6]} 16. Bxf6 {[%clk 0:02:17.1]} 16... gxf6 {[%clk 0:01:04.7]}
17. e4 {[%clk 0:02:17.4]} 17... Bd7 {[%clk 0:00:38.6]} 18. Rae1 {[%clk
0:02:15.2]} 18... dxe4 {[%clk 0:00:39.5]} 19. Qxe4 {[%clk 0:02:11.7]} 19... Qg6
{[%clk 0:00:37.9]} 20. Qe3 {[%clk 0:02:05.3]} 20... Rae8 {[%clk 0:00:38.1]} 21.
a3 {[%clk 0:01:48.3]} 21... Kh8 {[%clk 0:00:37.9]} 22. b4 {[%clk 0:01:48.5]}
22... Qg7 {[%clk 0:00:39.3]} 23. Re2 {[%clk 0:01:38.9]} 23... e5 {[%clk
0:00:31.1]} 24. dxe5 {[%clk 0:01:36]} 24... fxe5 {[%clk 0:00:32.1]} 25. Rd1
{[%clk 0:01:31.1]} 25... Bb8 {[%clk 0:00:30.4]} 26. Rf2 {[%clk 0:01:08]} 26...
Bg4 {[%clk 0:00:29]} 27. Re1 {[%clk 0:00:43.7]} 27... e4 {[%clk 0:00:30]} 28.
Nd2 {[%clk 0:00:32.6]} 28... Be5 {[%clk 0:00:29.4]} 29. Rxf8+ {[%clk 0:00:33.1]}
29... Rxf8 {[%clk 0:00:27.9]} 30. Kh1 {[%clk 0:00:25.6]} 30... Bc3 {[%clk
0:00:21.1]} 31. Qxe4 {[%clk 0:00:25.8]} 31... Bxd2 {[%clk 0:00:20.8]} 32. Rg1
{[%clk 0:00:22]} 32... Bc3 {[%clk 0:00:21.1]} 33. b5 {[%clk 0:00:19.6]} 33...
cxb5 {[%clk 0:00:21.9]} 34. cxb5 {[%clk 0:00:20.2]} 34... b6 {[%clk 0:00:22.7]}
35. Rc1 {[%clk 0:00:21.1]} 35... Bd4 {[%clk 0:00:19.2]} 36. Rc4 {[%clk
0:00:21.2]} 36... Rd8 {[%clk 0:00:17.4]} 37. Qf4 {[%clk 0:00:20.9]} 37... Bc5
{[%clk 0:00:10.9]} 38. Rc1 {[%clk 0:00:18.7]} 38... Be6 {[%clk 0:00:08.7]} 39.
a4 {[%clk 0:00:18.9]} 39... Bd5 {[%clk 0:00:08]} 40. Bxd5 {[%clk 0:00:19]} 40...
Rxd5 {[%clk 0:00:09.9]} 41. Re1 {[%clk 0:00:19.1]} 41... Rd8 {[%clk 0:00:10.5]}
42. Kg2 {[%clk 0:00:20.1]} 42... Qb7+ {[%clk 0:00:11.4]} 43. Kh3 {[%clk
0:00:20.7]} 43... Qd7+ {[%clk 0:00:12.5]} 44. Kg2 {[%clk 0:00:16.3]} 44... Qd5+
{[%clk 0:00:13.3]} 45. Kh3 {[%clk 0:00:13.2]} 45... Qd7+ {[%clk 0:00:13.6]} 46.
Kg2 {[%clk 0:00:13.1]} 46... Rf8 {[%clk 0:00:09.6]} 47. Qe5+ {[%clk 0:00:13.3]}
47... Qg7 {[%clk 0:00:10.7]} 48. Qe4 {[%clk 0:00:13]} 48... Qf6 {[%clk
0:00:08.7]} 49. Kh3 {[%clk 0:00:11.6]} 49... Qh6+ {[%clk 0:00:04.6]} 50. Qh4
{[%clk 0:00:12.5]} 50... Qf6 {[%clk 0:00:06.5]} 51. Qxf6+ {[%clk 0:00:12.5]}
51... Rxf6 {[%clk 0:00:08.3]} 52. Re5 {[%clk 0:00:13.2]} 52... Rf7 {[%clk
0:00:06.6]} 53. a5 {[%clk 0:00:13.7]} 53... Kg7 {[%clk 0:00:07.9]} 54. a6 {[%clk
0:00:14.7]} 54... Kf6 {[%clk 0:00:07.5]} 55. Re8 {[%clk 0:00:15.5]} 55... Re7
{[%clk 0:00:07.6]} 56. Rc8 {[%clk 0:00:16.3]} 56... Ke6 {[%clk 0:00:08.7]} 57.
Rd8 {[%clk 0:00:11.6]} 57... Bd6 {[%clk 0:00:09.4]} 58. Kg4 {[%clk 0:00:12.2]}
58... Kd5 {[%clk 0:00:10.8]} 59. Kf5 {[%clk 0:00:12.8]} 59... Kc5 {[%clk
0:00:12.2]} 60. Kf6 {[%clk 0:00:10.9]} 60... Rc7 {[%clk 0:00:06.6]} 61. Ke6
{[%clk 0:00:11.7]} 61... Rg7 {[%clk 0:00:04.4]} 62. Rc8+ {[%clk 0:00:11.2]}
62... Bc7 {[%clk 0:00:05.9]} 63. h4 {[%clk 0:00:10.4]} 63... Kxb5 {[%clk
0:00:06.6]} 64. h5 {[%clk 0:00:11.7]} 64... h6 {[%clk 0:00:06.9]} 65. Kf6 {[%clk
0:00:10.6]} 65... Rd7 {[%clk 0:00:07.8]} 66. g4 {[%clk 0:00:11.6]} 66... Kxa6
{[%clk 0:00:08]} 67. Rh8 {[%clk 0:00:12.3]} 67... b5 {[%clk 0:00:07.2]} 68. Kf5
{[%clk 0:00:10.1]} 68... Rd6 {[%clk 0:00:07.2]} 69. g5 {[%clk 0:00:11.5]} 69...
hxg5 {[%clk 0:00:08.8]} 70. h6 {[%clk 0:00:13.4]} 70... Rd5+ {[%clk 0:00:08]}
71. Kg4 {[%clk 0:00:14.7]} 71... Be5 {[%clk 0:00:08.2]} 72. Re8 {[%clk
0:00:14.8]} 72... Bc3 {[%clk 0:00:08.2]} 73. h7 {[%clk 0:00:15.4]} 73... Rd7
{[%clk 0:00:09.4]} 74. h8=Q {[%clk 0:00:05.1]} 74... Bxh8 {[%clk 0:00:10.1]} 75.
Rxh8 {[%clk 0:00:07]} 75... b4 {[%clk 0:00:11.1]} 76. Kxg5 {[%clk 0:00:08.1]}
76... Kb5 {[%clk 0:00:11.6]} 77. Kf4 {[%clk 0:00:08.5]} 77... Re7 {[%clk
0:00:12.8]} 78. Rh5+ {[%clk 0:00:09.5]} 78... Ka4 {[%clk 0:00:13.4]} 0-1

[Event "*** Biggest EVER Titled Tuesday"]
[Site "Chess.com"]
[Date "2018.04.17"]
[Round "7"]
[White "IMRosen"]
[Black "underdogchss"]
[Result "1/2-1/2"]
[WhiteElo "2394"]
[BlackElo "2380"]
[TimeControl "180+2"]
[EndTime "14:42:06 PDT"]
[Termination "Game drawn by agreement"]

1. d4 {[%clk 0:03:01.9]} 1... Nf6 {[%clk 0:03:00.5]} 2. Bf4 {[%clk 0:03:01.2]}
2... e6 {[%clk 0:02:57.4]} 3. e3 {[%clk 0:03:01.8]} 3... b6 {[%clk 0:02:57.6]}
4. Nf3 {[%clk 0:03:02.5]} 4... Bb7 {[%clk 0:02:58.4]} 5. c4 {[%clk 0:03:04]}
5... Be7 {[%clk 0:02:44.1]} 6. Nc3 {[%clk 0:02:55.1]} 6... Nh5 {[%clk
0:02:44.6]} 7. Bg3 {[%clk 0:02:54]} 7... Nxg3 {[%clk 0:02:44.4]} 8. hxg3 {[%clk
0:02:55.6]} 8... d6 {[%clk 0:02:45.5]} 9. Qc2 {[%clk 0:02:56.2]} 9... h6 {[%clk
0:02:45.8]} 10. O-O-O {[%clk 0:02:56.4]} 10... Nd7 {[%clk 0:02:44.3]} 11. Kb1
{[%clk 0:02:57.5]} 11... Nf6 {[%clk 0:02:45.1]} 12. Bd3 {[%clk 0:02:57.8]} 12...
c5 {[%clk 0:02:44.5]} 13. d5 {[%clk 0:02:54.3]} 13... exd5 {[%clk 0:02:24.5]}
14. cxd5 {[%clk 0:02:52.5]} 14... a6 {[%clk 0:02:26.4]} 15. e4 {[%clk
0:02:18.2]} 15... Qc7 {[%clk 0:02:14.9]} 16. Nh4 {[%clk 0:02:13.5]} 16... c4
{[%clk 0:02:08.7]} 17. Be2 {[%clk 0:02:13.3]} 17... g6 {[%clk 0:02:04]} 18. f4
{[%clk 0:02:08.1]} 18... b5 {[%clk 0:01:27.2]} 19. Nf3 {[%clk 0:01:57.3]} 19...
Ng4 {[%clk 0:01:22.1]} 20. Qd2 {[%clk 0:01:41.5]} 20... Qc5 {[%clk 0:01:06.6]}
21. Rde1 {[%clk 0:01:11.2]} 21... O-O-O {[%clk 0:00:31.8]} 22. Nd4 {[%clk
0:01:10.7]} 22... Nf2 {[%clk 0:00:22.9]} 23. Rhf1 {[%clk 0:01:00.4]} 23... Nd3
{[%clk 0:00:24]} 24. Nb3 {[%clk 0:01:01.8]} 24... cxb3 {[%clk 0:00:20.3]} 25.
Bxd3 {[%clk 0:01:02.7]} 25... bxa2+ {[%clk 0:00:20.8]} 26. Nxa2 {[%clk
0:00:59.6]} 26... Kb8 {[%clk 0:00:20.9]} 27. Qf2 {[%clk 0:00:43.9]} 27... Qxf2
{[%clk 0:00:12.5]} 28. Rxf2 {[%clk 0:00:45.8]} 28... h5 {[%clk 0:00:12.5]} 29.
Nb4 {[%clk 0:00:39.7]} 29... Ka7 {[%clk 0:00:13.2]} 30. Nc2 {[%clk 0:00:38.9]}
30... Bf6 {[%clk 0:00:13.3]} 31. Be2 {[%clk 0:00:21.9]} 31... Kb6 {[%clk
0:00:13.4]} 32. Bf3 {[%clk 0:00:23.3]} 32... Bg7 {[%clk 0:00:13.8]} 33. Rd2
{[%clk 0:00:23.5]} 33... Rhe8 {[%clk 0:00:14.2]} 34. Rh1 {[%clk 0:00:21.9]}
34... Re7 {[%clk 0:00:14.5]} 35. Re2 {[%clk 0:00:17.5]} 35... Rde8 {[%clk
0:00:15.3]} 36. Rhe1 {[%clk 0:00:18.7]} 36... Bf6 {[%clk 0:00:15.9]} 37. Kc1
{[%clk 0:00:19.8]} 37... Bg7 {[%clk 0:00:16.8]} 38. Kb1 {[%clk 0:00:20.8]} 38...
a5 {[%clk 0:00:18]} 39. Rd2 {[%clk 0:00:19.8]} 39... b4 {[%clk 0:00:18.7]} 40.
Red1 {[%clk 0:00:19.9]} 40... Bh6 {[%clk 0:00:18]} 41. Ne1 {[%clk 0:00:20.1]}
41... h4 {[%clk 0:00:18.9]} 42. Nd3 {[%clk 0:00:17.6]} 42... hxg3 {[%clk
0:00:19.2]} 43. Rh1 {[%clk 0:00:19.1]} 43... Bg7 {[%clk 0:00:19.8]} 44. Rh3
{[%clk 0:00:18.8]} 44... Ba6 {[%clk 0:00:20.6]} 45. Rxg3 {[%clk 0:00:19]} 45...
Bd4 {[%clk 0:00:21.7]} 46. e5 {[%clk 0:00:07.1]} 46... Be3 {[%clk 0:00:20.3]}
47. Rd1 {[%clk 0:00:03.8]} 47... dxe5 {[%clk 0:00:18.4]} 48. fxe5 {[%clk
0:00:04.2]} 48... Bxd3+ {[%clk 0:00:19.1]} 49. Rxd3 {[%clk 0:00:06.1]} 49...
Rxe5 {[%clk 0:00:20.6]} 50. Rh3 {[%clk 0:00:05.5]} 50... Bc5 {[%clk 0:00:21]}
51. Rh1 {[%clk 0:00:06.1]} 51... Re1+ {[%clk 0:00:21.4]} 52. Rxe1 {[%clk
0:00:07.4]} 52... Rxe1+ {[%clk 0:00:23]} 53. Rd1 {[%clk 0:00:07.4]} 53... Rxd1+
{[%clk 0:00:23.2]} 54. Bxd1 {[%clk 0:00:09.3]} 54... Bd6 {[%clk 0:00:24.6]} 55.
Kc2 {[%clk 0:00:08.7]} 55... Kc5 {[%clk 0:00:26.5]} 56. Bf3 {[%clk 0:00:09.9]}
56... a4 {[%clk 0:00:27.7]} 57. Kb1 {[%clk 0:00:05.3]} 57... b3 {[%clk
0:00:28.6]} 58. Kc1 {[%clk 0:00:04.8]} 58... Kc4 {[%clk 0:00:29.7]} 59. Kb1
{[%clk 0:00:02.7]} 59... Bf4 {[%clk 0:00:30.8]} 60. g4 {[%clk 0:00:03.5]} 60...
Kd3 {[%clk 0:00:31.3]} 61. Bg2 {[%clk 0:00:02.5]} 61... Kd4 {[%clk 0:00:32]} 62.
Bf3 {[%clk 0:00:03.8]} 62... Ke3 {[%clk 0:00:33]} 63. Bg2 {[%clk 0:00:05.1]}
63... Bd6 {[%clk 0:00:33.7]} 64. Bf1 {[%clk 0:00:05.7]} 64... Kf3 {[%clk
0:00:33.7]} 65. Bb5 {[%clk 0:00:03.7]} 65... g5 {[%clk 0:00:30.3]} 66. Be8
{[%clk 0:00:04.6]} 66... f6 {[%clk 0:00:31]} 67. Bd7 {[%clk 0:00:05.6]} 67...
Ke4 {[%clk 0:00:32.3]} 68. Be6 {[%clk 0:00:05.9]} 68... Ke5 {[%clk 0:00:33]} 69.
Kc1 {[%clk 0:00:07.2]} 69... Kd4 {[%clk 0:00:33.6]} 70. Kb1 {[%clk 0:00:08]}
70... Kc4 {[%clk 0:00:34.6]} 71. Kc1 {[%clk 0:00:06.7]} 71... Kb4 {[%clk
0:00:35.7]} 72. Kb1 {[%clk 0:00:08]} 72... a3 {[%clk 0:00:36.9]} 73. bxa3+
{[%clk 0:00:08.9]} 73... Kxa3 {[%clk 0:00:38.8]} 74. Bf5 {[%clk 0:00:09.5]}
74... Kb4 {[%clk 0:00:39.9]} 75. Be6 {[%clk 0:00:09.8]} 75... Kc4 {[%clk
0:00:40.8]} 76. Kb2 {[%clk 0:00:07.3]} 76... Be5+ {[%clk 0:00:41.1]} 77. Kb1
{[%clk 0:00:08.8]} 77... Kc3 {[%clk 0:00:42.1]} 78. Bf5 {[%clk 0:00:08.7]} 78...
Bd6 {[%clk 0:00:42.8]} 79. Be6 {[%clk 0:00:09.9]} 79... Ba3 {[%clk 0:00:43.9]}
80. Bf5 {[%clk 0:00:10.2]} 80... Kd4 {[%clk 0:00:44.1]} 81. Be6 {[%clk
0:00:11.4]} 81... Ke5 {[%clk 0:00:43.5]} 82. Ka1 {[%clk 0:00:10.6]} 82... Kd6
{[%clk 0:00:41.9]} 83. Kb1 {[%clk 0:00:11.6]} 83... Kc5 {[%clk 0:00:42.3]} 84.
Ka1 {[%clk 0:00:12.3]} 84... Kd4 {[%clk 0:00:43.3]} 85. Kb1 {[%clk 0:00:13.1]}
85... Kc3 {[%clk 0:00:44.7]} 86. Bf5 {[%clk 0:00:13.4]} 86... Bd6 {[%clk
0:00:44.6]} 87. Be6 {[%clk 0:00:14.3]} 87... Be5 {[%clk 0:00:44.5]} 88. Bf5
{[%clk 0:00:13.9]} 88... Kc4 {[%clk 0:00:41.4]} 89. Be6 {[%clk 0:00:14.9]} 89...
Kd4 {[%clk 0:00:42.4]} 90. Kb2 {[%clk 0:00:14.1]} 90... Kc4+ {[%clk 0:00:38.1]}
91. Kb1 {[%clk 0:00:12.6]} 91... Kb4 {[%clk 0:00:40]} 92. Bf5 {[%clk 0:00:11.6]}
92... Ka3 {[%clk 0:00:40.4]} 93. Be6 {[%clk 0:00:11.2]} 93... Ka4 {[%clk
0:00:38.6]} 94. Bf5 {[%clk 0:00:10.4]} 94... Kb4 {[%clk 0:00:37.3]} 95. Be6
{[%clk 0:00:11.2]} 95... Kc5 {[%clk 0:00:36.4]} 96. Kc1 {[%clk 0:00:12.2]} 96...
Kd6 {[%clk 0:00:34.6]} 97. Kb1 {[%clk 0:00:12.6]} 97... Bc3 {[%clk 0:00:35.7]}
98. Kc1 {[%clk 0:00:12.9]} 98... Ke5 {[%clk 0:00:36.7]} 99. Kb1 {[%clk
0:00:13.8]} 1/2-1/2